Cogmind - Beta 14 @@@ ROGUE MODE // 2024.12.09 @ 12:22:47 Player: AshCrow Result: Destroyed by G-47 Trooper with Particle Gun Performance ------------- Evolutions (2) 1000 Regions Visited (4) 800 Robots Destroyed (20) 100 Value Destroyed (703) 703 Prototype IDs (0) 0 Alien Tech Used (0) 0 Bonus (0) 0 TOTAL SCORE: 2603 Bonus ------- None Cogmind --------- Core Integrity 0/550 Matter 261/300 Energy 100/100 System Corruption 1% Temperature Danger (484) Movement Core (100) Ox1 Location -8/Materials Parts ------- > --- POWER (2) -------- (None) > --- PROPULSION (3) --- (None) > --- UTILITY (3) ------ Small Storage Unit > --- WEAPON (3) ------- (None) > --- INVENTORY (8) ---- Backup Power I Aluminum Leg Improved Aluminum Leg Medium Battery (150) Sensor Array Heavy Assault Rifle Heavy Assault Rifle Peak State ------------ > --- POWER ------------ Ion Engine Ion Engine > --- PROPULSION ------- Aluminum Leg Aluminum Leg Improved Aluminum Leg > --- UTILITY ---------- Small Storage Unit Reaction Control System Hacking Suite > --- WEAPON ----------- Particle Gun Particle Gun Heavy Assault Rifle > --- INVENTORY -------- Backup Power I Aluminum Leg Improved Aluminum Leg Heat Sink Medium Battery Sensor Array Heavy Assault Rifle Minigun [Rating: 20] Favorites ----------- Power Ion Engine Engine Ion Engine Propulsion Aluminum Leg Leg Aluminum Leg Utility Small Storage Unit Device Sensor Array Storage Small Storage Unit Hackware Hacking Suite Weapon Medium Laser Energy Gun Medium Laser Ballistic Gun Heavy Assault Rifle Build | -11 -10 -10 -9 -8 ------- Run | Yrd Mat Min Mat Mat Slots Evolved 4 | . . . 2 2 Power 1 | . . . . 1 Propulsion 1 | . . . 1 . Utility 1 | . . . . 1 Weapon 1 | . . . 1 . Parts Attached 20 | 4 3 . 4 9 Power 3 | 1 . . . 2 Engine 3 | 1 . . . 2 Core . | . . . . . Reactor . | . . . . . Propulsion 3 | 2 . . 1 . Treads . | . . . . . Leg 3 | 2 . . 1 . Wheel . | . . . . . Hover . | . . . . . Flight . | . . . . . Utility 6 | 1 1 . 1 3 Device 4 | . 1 . 1 2 Storage 1 | 1 . . . . Processor . | . . . . . Hackware 1 | . . . . 1 Protection . | . . . . . Artifact . | . . . . . Weapon 8 | . 2 . 2 4 Energy Gun 6 | . 2 . 2 2 Energy Cannon . | . . . . . Ballistic Gun 2 | . . . . 2 Ballistic Cannon . | . . . . . Launcher . | . . . . . Special Weapon . | . . . . . Impact Weapon . | . . . . . Slashing Weapon . | . . . . . Piercing Weapon . | . . . . . Special Melee Weapon . | . . . . . Unidentified Prototypes . | . . . . . Parts Lost 12 | . . . . 12 Power 2 | . . . . 2 Propulsion 3 | . . . . 3 Utility 3 | . . . . 3 Weapon 4 | . . . . 4 Highest Loss Streak 11 | . . . . 11 To Critical Strikes . | . . . . . Average Slot Usage (%) 96 | . 98 100 96 94 Engine 13 | . 14 14 11 17 Leg 29 | . 28 28 32 25 Device 12 | . 13 14 11 13 Storage 11 | . 14 14 11 9 Energy Gun 26 | . 26 28 30 18 Ballistic Gun 1 | . . . . 7 Peak Build Rating 20 | 4 7 7 12 20 Average Rating 10 | 3 6 7 10 17 On Entrance 6 | . 4 7 7 12 Naked Turns . | . . . . . Heaviest Build 26 | 10 15 15 18 26 Greatest Support 33 | 20 20 20 33 33 Greatest Overweight (x) 1 | . . . . 1 Average Overweight (x) . | . . . . . Largest Inventory Capacity 8 | 8 8 8 8 8 Average Capacity 7 | 7 8 8 8 8 Most Carried 8 | 8 8 8 8 8 Average Carried 7 | 5 7 8 7 7 Final Capacity 8 | 8 8 8 8 8 Final Carried 8 | 8 8 8 8 7 Class Distribution -------------------- 47% | Mutant 41% | Skirmisher 6% | Scavenger-Skirmisher 4% | Tank Dominant Class ---------------- Mutant | -10/Materials Mutant | -10/Mines Skirmisher | -9/Materials Scavenger-Skirmisher | -8/Materials Resources | -11 -10 -10 -9 -8 ----------- Run | Yrd Mat Min Mat Mat Matter Collected 429 | 182 32 . 96 119 Remotely . | . . . . . Salvage Created 832 | . 41 . 375 416 Parts 51 | . 2 . 24 25 Haulers Intercepted . | . . . . . Recyclers Shooed . | . . . . . Parts Field Recycled . | . . . . . Retrieved Matter . | . . . . . Parts Self-Destructed . | . . . . . Prevented . | . . . . . Kills | -11 -10 -10 -9 -8 ------- Run | Yrd Mat Min Mat Mat Combat Hostiles Destroyed 14 | . . . 7 7 Guns 14 | . . . 7 7 Classes Destroyed 5 | . 2 . 2 1 Operator 2 | . 1 . . 1 Watcher 4 | . 1 . 2 1 Grunt 3 | . . . 3 . Brawler 1 | . . . . 1 Sentry 10 | . . . 4 6 Best Kill Streak 2 | . 1 . 2 2 Combat Bots Only 2 | . . . 2 2 Max Kills in Single Turn 1 | . 1 . 1 1 Gunslinging . | . . . . . Exploded . | . . . . . Melee . | . . . . . Uniques/NPCs Destroyed . | . . . . . Combat | -11 -10 -10 -9 -8 -------- Run | Yrd Mat Min Mat Mat Hostile Shots Fired 152 | . . . 26 126 Missed 50 | . . . 8 42 Damage Taken 1733 | . . . 275 1458 Core 628 | . . . 70 558 Absorbed by Shields . | . . . . . Regen/Repaired (Parts) 41 | . . . . 41 Core Remaining (%) 94 | 100 . 100 82 . Volleys Fired 41 | . 4 . 17 20 Largest 3 | . 2 . 3 3 Hottest 155 | . 90 . 155 155 Shots Fired 107 | . 8 . 45 54 Gun 107 | . 8 . 45 54 Cannon . | . . . . . Launcher . | . . . . . Special . | . . . . . Kinetic 19 | . . . . 19 Thermal 66 | . 4 . 28 34 Explosive . | . . . . . Electromagnetic 22 | . 4 . 17 1 Robot Hit Streak 11 | . 3 . 9 11 Robot Miss Streak 2 | . 2 . 2 2 Penetration Max . | . . . . . Secondary Targets 1 | . . . 1 . Max Gunslinging Chain 1 | . . . 1 . Shots Hit Robots 69 | . 5 . 30 34 Core Hits 35 | . 2 . 15 18 Critical Kills . | . . . . . Critical Parts Destroyed . | . . . . . Critical Strikes 2 | . 1 . . 1 Burn 2 | . 1 . . 1 Melee Attacks . | . . . . . Impact . | . . . . . Slashing . | . . . . . Piercing . | . . . . . Sneak Attacks . | . . . . . Combat Hostiles . | . . . . . Follow-up Attacks . | . . . . . Damage Inflicted 1079 | . 106 . 432 541 Guns 1008 | . 67 . 400 541 Cannons . | . . . . . Explosions 71 | . 39 . 32 . Melee . | . . . . . Ramming . | . . . . . Kinetic 211 | . . . . 211 Thermal 647 | . 64 . 253 330 Explosive . | . . . . . Electromagnetic 221 | . 42 . 179 . Impact . | . . . . . Slashing . | . . . . . Piercing . | . . . . . Highest Corruption 1 | . . . . 1 Average Corruption 1 | . . . . 1 Corruption Purged . | . . . . . Corruption Blocked . | . . . . . Overload Shots . | . . . . . Overflow Damage . | . . . . . Projectiles . | . . . . . Explosions . | . . . . . Melee . | . . . . . Knockbacks . | . . . . . Impact . | . . . . . Kinetic . | . . . . . Secondary . | . . . . . Self-Inflicted Damage 32 | . . . 32 . Shots 1 | . . . 1 . Rammed . | . . . . . Targets Rammed . | . . . . . Kicked . | . . . . . Crushed . | . . . . . Highest Temperature 615 | . 60 . 288 615 Average Temperature 117 | . 31 . 85 157 Received Heat Transfer 729 | . . . 144 585 Effects 11 | . . . . 11 Shutdowns 1 | . . . . 1 Energy Bleed 3 | . . . . 3 Interference 1 | . . . . 1 Matter Decay 1 | . . . . 1 Short Circuit 1 | . . . . 1 Damage (minor) 1 | . . . . 1 Damage (major) 1 | . . . . 1 Damage (core) 2 | . . . . 2 Siege Activations . | . . . . . Robots Corrupted . | . . . . . Combat Hostiles . | . . . . . Parts Fried . | . . . . . Impact Corruptions . | . . . . . Robots Melted . | . . . . . Combat Hostiles . | . . . . . Parts Melted 3 | . . . 1 2 Heat Transferred 1679 | . 148 . 643 888 Parts Sabotaged . | . . . . . Parts Stolen . | . . . . . Parts Stripped . | . . . . . Power Chain Reactions 2 | . 1 . 1 . Alert | -11 -10 -10 -9 -8 ------- Run | Yrd Mat Min Mat Mat Peak Influence 312 | . 64 . 163 312 Initial 18 | . . . . 18 Average 58 | . 31 . 49 150 Maximum Alert Level 1 | . . . . 1 Low Security (%) 93 | 100 100 100 100 69 Level 1 6 | . . . . 30 Level 2 . | . . . . . Level 3 . | . . . . . Level 4 . | . . . . . Level 5 . | . . . . . High Security . | . . . . . Max Security . | . . . . . Squads Dispatched 2 | . . . 2 . Investigation 2 | . . . 2 . Extermination . | . . . . . Reinforcement . | . . . . . Assault . | . . . . . Garrison . | . . . . . Intercept . | . . . . . Searches Triggered . | . . . . . Construction Impeded . | . . . . . Haulers Reinforced . | . . . . . Active Scanning Responses . | . . . . . Cargo Convoy Interrupts . | . . . . . Stealth | -11 -10 -10 -9 -8 --------- Run | Yrd Mat Min Mat Mat Distress Signals 4 | . . . 1 3 Communications Jammed . | . . . . . Distress Signals . | . . . . . Times Spotted 39 | . 3 . 8 28 Peak Tracking Total 17 | . 1 . 2 17 Tactical Retreats 2 | . . . . 2 Traps | -11 -10 -10 -9 -8 ------- Run | Yrd Mat Min Mat Mat Traps Triggered 1 | . . . 1 . Indirectly . | . . . . . Trap Hack Attempts . | . . . . . Triggered . | . . . . . Disarmed . | . . . . . Reprogrammed . | . . . . . Reused . | . . . . . Traps Extracted . | . . . . . Installed . | . . . . . Triggered . | . . . . . Machines | -11 -10 -10 -9 -8 ---------- Run | Yrd Mat Min Mat Mat Machines Disabled 1 | . . . 1 . Max in Single Turn 1 | . . . 1 . Garrison Access 1 | . . . . 1 Machines Repaired . | . . . . . Machines Dismantled . | . . . . . Machines Sabotaged . | . . . . . Overloaded Fab Kills . | . . . . . Hacking | -11 -10 -10 -9 -8 --------- Run | Yrd Mat Min Mat Mat Machines Accessed 7 | . 4 . 1 2 Terminals 4 | . 3 . 1 . Fabricators . | . . . . . Repair Stations 1 | . . . . 1 Recycling Units 1 | . 1 . . . Scanalyzers . | . . . . . Garrison Access 1 | . . . . 1 Total Hacks 17 | . 8 . 4 5 Successful 10 | . 3 . 2 5 Failed 6 | . 5 . 1 . Catastrophic 1 | . 1 . . . Database Lockouts 1 | . . . 1 . Manual 1 | . 1 . . . Terminals 10 | . 6 . 4 . Fabricators . | . . . . . Repair Stations 3 | . . . . 3 Recycling Units 2 | . 2 . . . Scanalyzers . | . . . . . Garrison Access 2 | . . . . 2 Terminal Hacks 4 | . 2 . 2 . Record 3 | . 1 . 2 . Emergency Access Points 1 | . 1 . . . Fabricator Hacks . | . . . . . Repair Station Hacks 3 | . . . . 3 Scan Component 1 | . . . . 1 Repair 1 | . . . . 1 Refit 1 | . . . . 1 Recycling Unit Hacks 1 | . 1 . . . Process 1 | . 1 . . . Scanalyzer . | . . . . . Garrison Access Hacks 2 | . . . . 2 Unlock Access 1 | . . . . 1 Seal Access 1 | . . . . 1 Unauthorized Hacks . | . . . . . Terminals . | . . . . . Fabricators . | . . . . . Repair Stations . | . . . . . Recycling Units . | . . . . . Scanalyzers . | . . . . . Garrison Access . | . . . . . Data Cores Recovered 2 | . 1 . . 1 Used . | . . . . . Hacking Detections 3 | . 2 . 1 . Full Trace Events 1 | . . . 1 . Feedback Events . | . . . . . Feedback Blocked . | . . . . . Robot Schematics Acquired . | . . . . . Robots Built . | . . . . . Authchips . | . . . . . Time . | . . . . . Total Robot Build Rating . | . . . . . Part Schematics Acquired . | . . . . . Parts Built . | . . . . . Authchips . | . . . . . Time . | . . . . . Total Part Build Rating . | . . . . . Parts Repaired 1 | . . . . 1 Time 26 | . . . . 26 Parts Recycled . | . . . . . Recycled Matter 7 | . 7 . . . Retrieved Matter . | . . . . . Retrieved Components . | . . . . . Parts Scanalyzed . | . . . . . Part Schematics Acquired . | . . . . . Parts Damaged . | . . . . . Bothacking | -11 -10 -10 -9 -8 ------------ Run | Yrd Mat Min Mat Mat Used RIF Installer . | . . . . . Robots Hacked . | . . . . . Non-combat . | . . . . . Combat . | . . . . . Robot Hacks Applied . | . . . . . Relay Couplers Released . | . . . . . Fabnet Peak Effective % . | . . . . . Robots Rewired . | . . . . . Allies Hacked . | . . . . . Hacks Repelled . | . . . . . Allies | -11 -10 -10 -9 -8 -------- Run | Yrd Mat Min Mat Mat Total Allies . | . . . . . Largest Group . | . . . . . Highest-Rated Group . | . . . . . Highest-Rated Ally . | . . . . . Total Orders . | . . . . . Ally Attacks . | . . . . . Total Damage . | . . . . . Kills . | . . . . . Allies Corrupted . | . . . . . Allies Melted . | . . . . . Intel | -11 -10 -10 -9 -8 ------- Run | Yrd Mat Min Mat Mat Robot Analysis Total . | . . . . . Derelict Logs Recovered . | . . . . . Drone Launches . | . . . . . Drone Recoveries . | . . . . . Exploration | -11 -10 -10 -9 -8 ------------- Run | Yrd Mat Min Mat Mat Turns Passed 1981 | 85 429 207 863 397 Spaces Moved 1081 | 67 267 173 360 214 Core 22 | 15 . . . 7 Treads . | . . . . . Legs 1059 | 52 267 173 360 207 Wheels . | . . . . . Hover . | . . . . . Flight . | . . . . . Fastest Speed 50 | 50 120 120 120 100 Average Speed 118 | 104 120 120 120 119 Slowest Speed 120 | 120 120 120 120 120 Overloaded Moves . | . . . . . Propulsion Burnouts . | . . . . . Robots Hopped . | . . . . . Cave-ins Triggered . | . . . . . Exploration Rate (%) 32 | 4 38 54 38 26 Regions Visited 4 Branch Regions 1 Pre-discovered Areas . | . . . . . Known Exits Taken . | . . . . . Unknown Exits Taken 4 | 1 1 1 1 . Scrap Searched . | . . . . . Spaces Dug . | . . . . . Terrain Destroyed 6 | . 4 . 2 . Melee . | . . . . . Projectile . | . . . . . AOE 6 | . 4 . 2 . Terrain Rammed . | . . . . . Walls Destroyed . | . . . . . Machines Disabled . | . . . . . Actions | -11 -10 -10 -9 -8 --------- Run | Yrd Mat Min Mat Mat Total 1692 | 82 368 172 759 311 Wait 508 | . 90 . 357 61 Move 1077 | 66 266 172 359 214 Hop . | . . . . . Pick Up 33 | 12 4 . 12 5 Fast Attach . | . . . . . Attach 13 | 4 3 . 2 4 Detach . | . . . . . Swap 7 | . . . 2 5 Drop 13 | . 1 . 10 2 Fire 41 | . 4 . 17 20 Melee . | . . . . . Ram . | . . . . . Kick . | . . . . . Crush . | . . . . . Escape Stasis . | . . . . . Rewire . | . . . . . Trap . | . . . . . Miscellaneous . | . . . . . Route ------- -11/Scrapyard -10/Materials -10/Mines -9/Materials -8/Materials History --------- Turn | Location | Event 12 | -11/Scrapyard | Discovered new exit (range 16) 86 | -11/Scrapyard | Entered Materials 318 | -10/Materials | Build established: Mutant 489 | -10/Materials | Discovered new exit (range 9) 515 | -10/Materials | Entered Mines 699 | -10/Mines | Discovered new exit (range 6) 722 | -10/Mines | Entered Materials 722 | -9/Materials | Evolved 2 slots: Propulsion x1, Weapon x1 1213 | -9/Materials | Build established: Skirmisher 1544 | -9/Materials | Discovered new exit (range 8) 1558 | -9/Materials | Central database locked down 1585 | -9/Materials | Entered another Materials area 1585 | -8/Materials | Evolved 2 slots: Power x1, Utility x1 1733 | -8/Materials | Repaired Ion Engine 1867 | -8/Materials | Identified exit to Garrison 1973 | -8/Materials | Core integrity fell below 50% 1976 | -8/Materials | Core integrity fell below 20% 1982 | -8/Materials | Destroyed by G-47 Trooper with Particle Gun Last Messages --------------- Overheating: Energy bleed (-20). K-01 Serf cleans the Matter Pump. Overheating: Hacking Suite damaged (-3). Ion Engine destroyed. Particle Gun destroyed. Overheating: Core damaged (-99). Y-45 Defender destroyed. K-01 Serf collects debris. Critical hit (Burn: +37). Minigun destroyed. Overheating: Energy bleed (-14). K-01 Serf cleans the Matter Pump. Overheating: Matter decay (-54). R-06 Scavenger collects Lgt. Ion Engine. K-01 Serf collects debris. Overheating: Hacking Suite damaged (-2). Acquired 10 matter. K-01 Serf collects debris. Hacking Suite destroyed. K-01 Serf collects debris. Map ----- +----------------------------------------------------+ | ?????????????????????????????????????????????????? | | ?????????????????????????????????????????????????? | | ?????????????????????????????????????????????????? | | ?????????????????????????????????????????????????? | | ?????????????????????????????????????????????????? | | ?????????????????????????????????????????????????? | | ?????????????????????????????????????????????????? | | ?????????????????????????????????????????????????? | | ?????????????????????????????????????????????????? | | ?????????????????????????????????????????????????? | | ????????????????????????? ????????????# #??????? | | ????????????????????????? #??????????/ ??????? | | ????????????????????????? #??????????# ??????? | | ????????????????????????# #??????????# #?????? | | ????????????????????????# #??????????# #?????? | | ????????????????????????# ?????????? +?????? | | ????????????????????????# #??????????# #?????? | | ????????????????????????# ##?????????# #?????? | | ????????????????????????# # ######?### #?????? | | ????????????????????????# # ## #?????? | | ????????????????????????# # """ ## ####### | | ????????????????????????# # """ ## #! ! | | ????????????????????????# # """ ## # | | ??????????! #####+##### # !! ## # """ | | ?????????? #= != ## / """ | | ?????????? Y @ #? ## # """ | | ?????????? a #??? ??# # | | ?????????? ###+###### ######+##### ####### | | ???????????????????????# r !%!% = #?????? | | ???????????????????????# [*= % #?????? | | ???????????????????????# "" gg [ #?????? | | ???????????????????????# "Y g""" ########????## | | ???????????????????????# "" k""" #???????????# | | ???????????????????????# """ #???????????# | | ???????????????????????# #???????????# | | ??????????????????????? #???????????# | | ?????????????????????? = ???????????# | | ????????????????????? ##??????????# | | ????????????????????? #???????????# | | ?????????????????????########### #???????????## | | ???????????????????????????????# #????????????? | | ???????????????????????????????# #??????????### | | ??????????????????????????????? ??????????#!! | | ????????????????????????????????? ???????????#!! | | ???????????????????????????????????????????????#!! | | ???????????????????????????????????????????????#!! | | ???????????????????????????????????????????????#!! | | ???????????????????????????????????????????????#!! | | ???????????????????????????????????????????????### | | ?????????????????????????????????????????????????? | +----------------------------------------------------+ Best States ------------- Heat Dissipation 31 Energy Generation 15 Energy Capacity 400 Matter Stores 300 Matter Capacity 300 Sight Range 16 Robot Scan Range 14 Terrain Scan Range 14 Terrain Scan Density 10 Evasion (%) 63 Offensive Hacking 10 Item Schematics ----------------- None Robot Schematics ------------------ None Fabricated ------------ Nothing Alien Tech Used ----------------- None Achievements -------------- Part-time Mechanic Challenges ------------ None Game ------ Seed SwordSuperchargedScreen Manual? 0 Play Time 00:32:47 Cumulative 7.6 hours Start 2024.12.09 @ 11:47:51 End 2024.12.09 @ 12:22:47 Sessions 1 Manual Loads 0 Difficulty Rogue Special Mode None Game No. 10 Rogue 10 Adventurer 0 Explorer 0 Win Type - Total 0 Types 0/0/0/0/0/0/0/0/0 Lore% 7 Gallery% 10 Achievement% 11 Wizard Run 0 Options --------- Layout 1 ASCII 0 Keyboard 0 Movement Numpad Keybinds 0 Fullscreen 1 Font 24/Smallcaps Map View 50x35 Zoom Use 0% Tactical HUD 0 Map Filters NONE Filters NONE Steam 1 RUN: 4a876ab5-879b-4f7c-a33b-2bae0315cfcf